fUSD/lending_fUSD_20260121
["ID","MTS","AMOUNT","RATE_DAILY","PERIOD"]
[402929862,1768990234634,-3869.20302636,0.00017073,2]
[402929863,1768990234646,-452.56828698,0.00017073,2]
[402929864,1768990234656,-801.84979979,0.00017081,2]
[402929865,1768990234679,-330.15020021,0.00017081,2]
[402929866,1768990234689,-200.0,0.00017096,2]
[402929867,1768990234699,-82.20363535,0.00017115,2]
[402929868,1768990234710,-462.11065713,0.00017115,2]
[402929870,1768990237888,-1303.68570752,0.00017115,2]
[402929871,1768990237899,-110.61615502,0.00017149,2]
[402929872,1768990237911,-40.38384498,0.00017149,2]
[402929873,1768990237919,-1574.0,0.00017183,2]
[402929874,1768990237931,-537.0,0.00017216,2]
[402929875,1768990237940,-293.62,0.00017231,2]
[402929876,1768990237950,-169.99517251,0.00017233,2]
[402929877,1768990237961,-500.0,0.00017233,2]
[402929878,1768990237971,-193.68,0.00017246,2]
[402929879,1768990237981,-1917.0,0.0001725,2]
[402929880,1768990237992,-1708.0,0.00017284,2]
[402929881,1768990238001,-1137.97285381,0.00017301,2]
[402929882,1768990238012,-1814.35884478,0.00017301,2]
[402929883,1768990238025,-16080.10300792,0.00017301,2]
[402929884,1768990238034,-871.52,0.00017314,2]
[402929885,1768990238043,-1353.0,0.00017318,2]
[402929886,1768990238052,-500.0,0.00017324,2]
[402929887,1768990238061,-499.0,0.00017352,2]
[402929888,1768990238071,-1911.40070551,0.00017352,2]
[402929889,1768990238080,-9379.0,0.00017367,2]
[402929890,1768990238089,-19032.4347065,0.00017368,2]
[402929891,1768990238098,-500.79549494,0.00017373,2]
[402929892,1768990238108,-500.12560695,0.00017373,2]
[402929893,1768990238117,-500.0,0.00017373,2]
[402929894,1768990238126,-257.99612183,0.00017373,2]
[402929895,1768990238136,-550.70733566,0.00017373,2]
[402929896,1768990238145,-500.15189466,0.00017373,2]
[402929897,1768990238155,-500.0,0.00017373,2]
[402929899,1768990238165,-500.0,0.00017373,2]
[402929901,1768990238174,-500.0,0.00017373,2]
[402929903,1768990238183,-500.0,0.00017373,2]
[402929905,1768990238192,-500.0,0.00017373,2]
[402929907,1768990238201,-500.0,0.00017373,2]
[402929909,1768990238210,-150.0,0.00017373,2]
[402929911,1768990238219,-159.96427776,0.00017373,2]
[402929912,1768990238229,-500.0,0.00017373,2]
[402929913,1768990238238,-500.0,0.00017373,2]
[402929914,1768990238248,-500.0,0.00017373,2]
[402929915,1768990238257,-500.0,0.00017373,2]
[402929916,1768990238266,-586.66357325,0.00017373,2]
[402929917,1768990238275,-500.0,0.00017373,2]
[402929918,1768990238286,-1650.0,0.00017386,2]
[402929919,1768990238295,-505.0,0.00017419,2]
[402929920,1768990238305,-19032.4347065,0.00017434,2]
[402929921,1768990238314,-957.0,0.00017453,2]
[402929922,1768990238324,-475.0,0.00017487,2]
[402929923,1768990238333,-19032.4347065,0.00017501,2]
[402929925,1768990238342,-293.0,0.00017516,2]
[402929927,1768990238351,-293.0,0.00017519,2]
[402929929,1768990238361,-1586.0,0.00017521,2]
[402929931,1768990238370,-1790.0,0.00017555,2]
[402929933,1768990238379,-19032.4347065,0.00017567,2]
[402929935,1768990238388,-1000.0,0.00017575,2]
[402929937,1768990238397,-5237.20489654,0.00017586,2]
[402929939,1768990238406,-871.52,0.00017588,2]
[402929941,1768990238415,-547.0,0.00017588,2]
[402929943,1768990238424,-196.77793317,0.00017598,2]
[402929945,1768990238434,-310.0,0.00017609,2]
[402929947,1768990238443,-1000.0,0.00017621,2]
[402929949,1768990238452,-500.0,0.00017621,2]
[402929951,1768990238461,-1000.0,0.00017621,2]
[402929953,1768990238470,-500.0,0.00017621,2]
[402929955,1768990238479,-1000.0,0.00017621,2]
[402929957,1768990238489,-1000.0,0.00017621,2]
[402929959,1768990238498,-500.0,0.00017621,2]
[402929961,1768990238506,-19032.4347065,0.00017634,2]
[402929963,1768990238515,-293.0,0.00017673,2]
[402929965,1768990238524,-239.71111362,0.00017686,2]
[402929967,1768990238533,-19032.4347065,0.000177,2]
[402929969,1768990238542,-19032.4347065,0.00017767,2]
[402929970,1768990238551,-293.0,0.00017828,2]
[402929972,1768990238561,-19032.4347065,0.00017833,2]
[402929974,1768990238570,-5044.21670315,0.00017852,2]
[402929976,1768990238579,-8898.59617446,0.00017852,2]
[402929978,1768990238589,-13311.76768691,0.00017852,2]
[402929980,1768990238599,-18011.2878,0.00017852,2]
[402929983,1768990238608,-293.0,0.00017858,2]
[402929984,1768990238617,-871.52,0.00017862,2]
[402929986,1768990238626,-293.0,0.00017864,2]
[402929988,1768990238636,-500.0,0.00017899,2]
[402929991,1768990238645,-500.0,0.00017899,2]
[402929993,1768990238654,-3159.0769,0.000179,2]
[402929995,1768990238664,-2135.1202794,0.000179,3]
[402929997,1768990238674,-5509.30096444,0.000179,3]
[402929999,1768990238683,-239.71111362,0.000179,2]
[402930001,1768990238692,-862.39790705,0.000179,2]
[402930002,1768990238702,-1491.55536058,0.000179,2]
[402930004,1768990238711,-19032.4347065,0.000179,2]
[402930006,1768990238721,-461.93263446,0.00017921,2]
[402930008,1768990238730,-617.64963419,0.00017921,2]
[402930010,1768990238739,-1139.69507159,0.00017921,2]
[402930013,1768990238752,-1000.0,0.00017921,2]
[402930015,1768990238761,-1000.0,0.00017921,2]
[402930017,1768990238770,-561.91385606,0.00017921,2]
[402930019,1768990238779,-1000.0,0.00017921,2]
[402930021,1768990238788,-242.41470896,0.00017921,2]
[402930023,1768990238799,-1000.0,0.00017921,2]
[402930025,1768990238808,-1000.0,0.00017921,2]
[402930027,1768990238818,-1000.0,0.00017921,2]
[402930028,1768990238827,-1000.0,0.00017921,2]
[402930030,1768990238836,-1000.0,0.00017921,2]
[402930032,1768990238846,-293.0,0.00017968,2]
[402930034,1768990238855,-500.0,0.0001797,2]
[402930036,1768990238865,-694.631145,0.0001797,2]
[402930038,1768990238875,-1000.0,0.0001797,2]
[402930041,1768990238888,-1000.0,0.0001797,2]
[402930042,1768990238898,-1321.57411122,0.0001797,2]
[402930045,1768990238908,-500.0,0.0001797,2]
[402930047,1768990238918,-1000.0,0.0001797,2]
[402930049,1768990238927,-500.0,0.00017972,2]
[402930050,1768990238938,-15055.0,0.00017973,2]
[402930052,1768990238948,-30553.0,0.00017973,2]
[402930055,1768990238959,-500.0,0.00017973,2]
[402930056,1768990238968,-150.0,0.00017973,2]
[402930059,1768990238978,-500.0,0.00017982,2]
[402930061,1768990238987,-305.22366862,0.0001799,2]
[402930063,1768990238997,-305.22366862,0.0001799,2]
[402930064,1768990239006,-305.22366862,0.0001799,2]
[402930066,1768990239017,-151.0,0.00017997,2]
[402930068,1768990239027,-150.0,0.00017999,2]
[402930070,1768990239037,-150.0,0.00017999,2]
[402930072,1768990239047,-150.0,0.00017999,2]
[402930074,1768990239056,-150.0,0.00017999,2]
[402930076,1768990239067,-241.89100513,0.00017999,2]
[402930078,1768990239076,-155.0,0.00017999,2]
[402930080,1768990239086,-300.0,0.00017999,2]
[402930082,1768990239096,-383.87868293,0.00017999,2]
[402930084,1768990239106,-500.0,0.00017999,2]
[402930086,1768990239116,-500.0,0.00017999,2]
[402930088,1768990239126,-500.0,0.00017999,2]
[402930090,1768990239136,-500.0,0.00017999,2]
[402930092,1768990239145,-500.0,0.00017999,2]
[402930094,1768990239155,-500.0,0.00017999,2]
[402930096,1768990239165,-500.0,0.00017999,2]
[402930098,1768990239174,-374.17567263,0.00017999,2]
[402930100,1768990239185,-300.0,0.00017999,2]
[402930102,1768990239195,-666.0,0.00017999,2]
[402930104,1768990239204,-300.0,0.00017999,2]
[402930106,1768990239213,-666.0,0.00017999,2]
[402930108,1768990239223,-300.0,0.00017999,2]
[402930110,1768990239232,-500.0,0.00017999,2]
[402930112,1768990239241,-511.10431069,0.00017999,2]
[402930114,1768990239252,-512.94511846,0.00017999,2]
[402930116,1768990239262,-406.40115106,0.00017999,2]
[402930118,1768990239271,-191.49199704,0.00017999,2]
[402930120,1768990239282,-347.95260072,0.00017999,2]
[402930123,1768990239291,-500.0,0.00017999,2]
[402930125,1768990239300,-348.24408228,0.00017999,2]
[402930127,1768990239309,-500.0,0.00017999,2]
[402930129,1768990239318,-336.3635893,0.00017999,2]
[402930130,1768990239327,-2439168.29736546,0.00018,2]
[402930136,1768990239369,-1187.39643271,0.00018,2]
[402930174,1768990239925,-266.6244499,0.00018,2]
[402930175,1768990239980,-8630.74840888,0.00018,2]
[402930176,1768990239991,-1780.93726904,0.00018,2]
[402930177,1768990240002,-1109.86639144,0.00018,2]
[402930178,1768990240035,-7095667.3390124,0.00018,2]
[402930179,1768990240046,-14257.3092901,0.00018,2]
[402930180,1768990240193,-1144.98581222,0.00018,2]
[402930181,1768990240361,-796.87788394,0.00018,2]
[402930182,1768990240372,-773.84488531,0.00018,2]
[402930185,1768990243071,-439.16784143,0.00018,2]
[402930186,1768990243179,-722.053332,0.00018,2]
[402930187,1768990243191,-77920.02462443,0.00018,2]
[402930188,1768990243234,-3874.85299278,0.00018,2]
[402930189,1768990243245,-1298.3405926,0.00018,2]
[402930190,1768990243292,-758.45658985,0.00018,2]
[402930191,1768990243302,-1247.15678382,0.00018,2]
[402930192,1768990243313,-1582.81167189,0.00018,2]
[402930194,1768990243324,-1660.56417668,0.00018,2]
[402930196,1768990245898,-12434.572551,0.00018,2]
[402930197,1768990245910,-9251.43268486,0.00018,2]
[402930198,1768990245947,-2000.0,0.00018,2]
[402930199,1768990245958,-2853.90621446,0.00018,2]
[402930208,1768990373887,166.66,0.0001616,2]
[402930213,1768990546918,659.56,0.00014137,2]
[402930219,1768990900134,1370.15,0.00016283,2]
[402930220,1768990951939,384.08576041,0.00016245,2]
[402930226,1768991058410,200.0,0.00016267,2]
[402930227,1768991158902,171.97,0.00016175,2]
[402930228,1768991247513,541.61,0.00016234,2]
[402930229,1768991254553,681.41911664,0.00016245,2]
[402930247,1768991431996,-296.0765777,0.00016464,2]
[402930248,1768991432008,-714.96934667,0.00016464,2]
[402930249,1768991432219,-125.5877579,0.00016464,2]
[402930250,1768991432228,-195.0,0.00016467,2]
[402930251,1768991432238,-150.0,0.00016471,2]
[402930252,1768991432248,-195.0,0.00016472,2]
[402930253,1768991432257,-274.4122421,0.00016477,2]
[402930254,1768991432268,-539.07428944,0.00016477,2]
[402930255,1768991432325,-386.51346846,0.00016477,2]
[402930256,1768991432336,-166.66,0.000165,2]
[402930257,1768991432351,-3240.0,0.00016514,2]
[402930258,1768991432361,-150.00905316,0.00016825,2]
[402930259,1768991432370,-310.0,0.00016839,2]
[402930260,1768991432379,-166.66,0.0001684,2]
[402930261,1768991432389,-150.99,0.0001684,2]
[402930262,1768991432399,-9999.99,0.0001684,2]
[402930263,1768991432409,-9999.99,0.0001684,2]
[402930264,1768991432418,-999.99,0.0001684,2]
[402930265,1768991432427,-150.99,0.0001684,2]
[402930266,1768991432437,-541.61,0.00016843,2]
[402930267,1768991432446,-500.0,0.00016906,2]
[402930268,1768991432455,-500.0,0.00016906,2]
[402930269,1768991432464,-151.0,0.00016906,2]
[402930270,1768991432473,-500.0,0.00016906,2]
[402930271,1768991432482,-151.0,0.00016906,2]
[402930272,1768991432491,-500.0,0.00016906,2]
[402930273,1768991432500,-151.0,0.00016906,2]
[402930274,1768991432509,-500.0,0.00016906,2]
[402930275,1768991432519,-151.0,0.00016906,2]
[402930276,1768991432528,-500.0,0.00016906,2]
[402930277,1768991432537,-151.0,0.00016906,2]
[402930278,1768991432546,-500.0,0.00016906,2]
[402930279,1768991432555,-250.0,0.00016906,2]
[402930280,1768991432564,-151.0,0.00016906,2]
[402930281,1768991432574,-151.0,0.00016906,2]
[402930282,1768991432583,-151.0,0.00016906,2]
[402930283,1768991432807,-151.0,0.00016906,2]
[402930284,1768991432821,-151.0,0.00016906,2]
[402930285,1768991432831,-151.0,0.00016906,2]
[402930286,1768991432840,-151.0,0.00016906,2]
[402930287,1768991432849,-151.0,0.00016906,2]
[402930288,1768991432858,-151.0,0.00016906,2]
[402930289,1768991432867,-151.0,0.00016906,2]
[402930290,1768991432876,-151.0,0.00016906,2]
[402930291,1768991432886,-151.0,0.00016906,2]
[402930292,1768991432895,-151.0,0.00016906,2]
[402930293,1768991432904,-500.0,0.00016906,2]
[402930294,1768991432913,-183.0,0.00016932,2]
[402930295,1768991432922,-183.0,0.00016976,2]
[402930296,1768991432933,-250.0,0.00017,2]
[402930297,1768991432943,-1221.0,0.00017059,2]
[402930298,1768991432952,-500.0,0.00017072,2]
[402930299,1768991432961,-365.53975245,0.00017072,2]
[402930300,1768991432970,-500.0,0.00017073,2]
[402930301,1768991432980,-500.0,0.00017073,2]
[402930302,1768991432989,-500.0,0.00017073,2]
[402930303,1768991432998,-500.0,0.00017073,2]
[402930304,1768991433008,-500.0,0.00017073,2]
[402930305,1768991433017,-500.0,0.00017073,2]
[402930306,1768991433026,-500.0,0.00017073,2]
[402930307,1768991433036,-500.0,0.00017073,2]
[402930308,1768991433045,-1068.0,0.00017093,2]
[402930309,1768991433056,-200.6,0.00017096,2]
[402930310,1768991433066,-1370.15,0.00017097,2]
[402930311,1768991433075,-1536.0,0.00017127,2]
[402930312,1768991433085,-1537.0,0.00017161,2]
[402930313,1768991433094,-234.89,0.00017166,2]
[402930314,1768991433104,-207.0,0.00017168,2]
[402930315,1768991433113,-151.0,0.00017176,2]
[402930316,1768991433122,-151.0,0.00017176,2]
[402930317,1768991433132,-166.66,0.0001718,2]
[402930318,1768991433141,-260.0,0.00017195,2]
[402930319,1768991433151,-1940.0,0.00017203,2]
[402930320,1768991433160,-953.06488962,0.00017229,2]
[402930321,1768991433194,-368.57380867,0.00017229,2]
[402930325,1768991438015,-500.0,0.00017071,2]
[402930326,1768991438025,-500.0,0.00017071,2]
[402930327,1768991438035,-349.90711029,0.00017071,2]
[402930328,1768991438071,-150.09288971,0.00017071,2]
[402930329,1768991438080,-500.0,0.00017071,2]
[402930330,1768991438090,-500.0,0.00017071,2]
[402930331,1768991438099,-500.0,0.00017071,2]
[402930332,1768991438108,-500.0,0.00017071,2]
[402930333,1768991438117,-500.0,0.00017071,2]
[402930334,1768991438127,-500.0,0.00017071,2]
[402930335,1768991438137,-500.0,0.00017071,2]
[402930336,1768991438146,-506.45962955,0.00017071,2]
[402930337,1768991438155,-500.0,0.00017071,2]
[402930338,1768991438164,-500.0,0.00017071,2]
[402930339,1768991438173,-500.0,0.00017071,2]
[402930340,1768991438183,-500.0,0.00017071,2]
[402930341,1768991438192,-500.0,0.00017071,2]
[402930342,1768991438202,-500.0,0.00017071,2]
[402930343,1768991438211,-500.0,0.00017071,2]
[402930344,1768991438221,-500.0,0.00017071,2]
[402930345,1768991438231,-500.0,0.00017071,2]
[402930346,1768991438240,-393.50932202,0.00017071,2]
[402930347,1768991438251,-106.49067798,0.00017071,2]
[402930348,1768991438261,-500.0,0.00017071,2]
[402930349,1768991438270,-500.0,0.00017071,2]
[402930350,1768991438281,-500.0,0.00017071,2]
[402930351,1768991438291,-500.0,0.00017071,2]
[402930353,1768991438300,-500.0,0.00017071,2]
[402930355,1768991438310,-499.55847429,0.00017071,2]
[402930357,1768991438323,-0.44152571,0.00017071,2]
[402930359,1768991438332,-257.80056137,0.00017071,2]
[402930361,1768991438343,-500.0,0.00017071,2]
[402930363,1768991438352,-430.50413783,0.00017071,2]
[402930365,1768991438364,-69.49586217,0.00017071,2]
[402930367,1768991438373,-500.0,0.00017071,2]
[402930369,1768991438382,-500.0,0.00017071,2]
[402930371,1768991438391,-500.0,0.00017071,2]
[402930373,1768991438400,-500.0,0.00017071,2]
[402930375,1768991438410,-500.0,0.00017071,2]
[402930376,1768991438419,-500.0,0.00017071,2]
[402930378,1768991438428,-500.0,0.00017071,2]
[402930380,1768991438437,-1.24656468,0.00017071,2]
[402930382,1768991438449,-407.5923798,0.00017071,2]
[402930384,1768991438484,-91.16105552,0.00017071,2]
[402930385,1768991438494,-500.0,0.00017071,2]
[402930386,1768991438504,-500.0,0.00017071,2]
[402930387,1768991438515,-500.0,0.00017071,2]
[402930388,1768991438525,-500.0,0.00017071,2]
[402930389,1768991438535,-500.0,0.00017071,2]
[402930390,1768991438545,-500.0,0.00017071,2]
[402930391,1768991438555,-500.0,0.00017071,2]
[402930392,1768991438565,-500.0,0.00017071,2]
[402930393,1768991438575,-500.0,0.00017071,2]
[402930394,1768991438585,-373.36130171,0.00017229,2]
[402930395,1768991438594,-718.0,0.00017237,2]
[402930396,1768991438603,-1065.0,0.00017263,2]
[402930397,1768991438613,-1994.0,0.00017271,2]
[402930398,1768991438623,-1286.0,0.00017305,2]
[402930399,1768991438633,-305.0,0.0001734,2]
[402930400,1768991438642,-500.0,0.00017345,2]
[402930401,1768991438652,-5888.0,0.00017363,2]
[402930402,1768991438661,-242.00387817,0.00017373,2]
[402930403,1768991438671,-617.64963419,0.00017373,2]
[402930404,1768991438680,-500.0,0.00017373,2]
[402930405,1768991438690,-500.79549494,0.00017373,2]
[402930406,1768991438699,-159.96427776,0.00017373,2]
[402930407,1768991438708,-500.0,0.00017373,2]
[402930408,1768991438718,-500.12560695,0.00017373,2]
[402930409,1768991438727,-500.0,0.00017373,2]
[402930410,1768991438736,-500.0,0.00017373,2]
[402930411,1768991438745,-500.0,0.00017373,2]
[402930412,1768991438754,-500.0,0.00017373,2]
[402930413,1768991438764,-500.0,0.00017373,2]
[402930414,1768991438773,-500.0,0.00017373,2]
[402930415,1768991438783,-150.0,0.00017373,2]
[402930416,1768991438793,-500.0,0.00017373,2]
[402930417,1768991438802,-586.66357325,0.00017373,2]
[402930418,1768991438811,-500.0,0.00017373,2]
[402930419,1768991438821,-653.64,0.00017373,2]
[402930420,1768991438830,-1105.0,0.00017374,2]
[402930421,1768991438839,-1484.0,0.00017408,2]
[402930422,1768991438848,-9286.38050607,0.00017439,2]
[402930423,1768991438858,-1532.144,0.0001744,2]
[402930424,1768991438867,-50817.2449,0.0001744,2]
[402930425,1768991438877,-2500.0,0.0001744,2]
[402930426,1768991438887,-324.92591652,0.00017441,2]
[402930427,1768991438896,-1039.0,0.00017442,2]
[402930428,1768991438906,-541.61,0.00017452,2]
[402930429,1768991438915,-1201.0,0.00017477,2]
[402930430,1768991438925,-9286.38050599,0.0001749,2]
[402930431,1768991438935,-23266.27927483,0.000175,2]
[402930432,1768991438945,-324.92591646,0.00017518,2]
[402930433,1768991438955,-166.66,0.0001752,2]
[402930434,1768991438964,-18737.20153666,0.00017521,2]
[402930435,1768991438974,-305.22366862,0.0001753,2]
[402930436,1768991438983,-150.0,0.00017539,2]
[402930437,1768991438993,-150.0,0.00017539,2]
[402930438,1768991439003,-150.0,0.00017539,2]
[402930439,1768991439012,-150.0,0.00017539,2]
[402930440,1768991439022,-241.89100513,0.00017539,2]
[402930441,1768991439031,-406.40115106,0.00017539,2]
[402930442,1768991439041,-500.0,0.00017539,2]
[402930443,1768991439052,-512.94511846,0.00017539,2]
[402930444,1768991439061,-347.95260072,0.00017539,2]
[402930445,1768991439071,-348.24408228,0.00017539,2]
[402930446,1768991439080,-500.0,0.00017539,2]
[402930447,1768991439090,-191.49199704,0.00017539,2]
[402930448,1768991439100,-336.3635893,0.00017539,2]
[402930449,1768991439110,-1000000.0,0.0001754,2]
[402930450,1768991439120,-9286.38050599,0.00017541,2]
[402930451,1768991439129,-18737.20153664,0.00017563,2]
[402930452,1768991439138,-9286.38050599,0.00017593,2]
[402930453,1768991439147,-324.92591646,0.00017594,2]
[402930454,1768991439156,-18737.20153664,0.00017606,2]
[402930455,1768991439165,-196.77793317,0.00017619,2]
[402930456,1768991439174,-500.0,0.00017621,2]
[402930457,1768991439183,-1000.0,0.00017621,2]
[402930458,1768991439193,-856.6893145,0.00017621,2]
[402930459,1768991439202,-938.72320823,0.00017621,2]
[402930460,1768991439211,-7192.05936289,0.0001764,2]
[402930461,1768991439220,-9286.38050599,0.00017644,2]
[402930462,1768991439229,-653.64,0.00017647,2]
[402930463,1768991439238,-18737.20153664,0.00017648,2]
[402930464,1768991439247,-540.77,0.00017665,2]
[402930465,1768991439255,-324.92591646,0.00017671,2]
[402930466,1768991439264,-18737.20153664,0.00017691,2]
[402930467,1768991439274,-9286.38050599,0.00017695,2]
[402930468,1768991439287,-1000.0,0.000177,2]
[402930469,1768991439298,-1898.0,0.000177,2]
[402930470,1768991439307,-1000.0,0.000177,2]
[402930471,1768991439320,-1000.0,0.000177,2]
[402930472,1768991439329,-18737.20153664,0.00017733,2]
[402930473,1768991439338,-9286.38050599,0.00017746,2]
[402930474,1768991439347,-324.92591646,0.00017747,2]
[402930475,1768991439359,-18737.20153664,0.00017776,2]
[402930476,1768991439368,-171.97,0.00017792,2]
[402930477,1768991439377,-9286.38050599,0.00017798,2]
[402930478,1768991439386,-18737.20153664,0.00017818,2]
[402930479,1768991439395,-324.92591646,0.00017824,2]
[402930480,1768991439404,-5224.98447911,0.0001783,2]
[402930481,1768991439413,-9286.38050599,0.00017849,2]
[402930482,1768991439422,-18737.20153664,0.00017861,2]
[402930483,1768991439431,-166.66,0.00017861,2]
[402930484,1768991439439,-216.78936311,0.00017877,2]
[402930485,1768991439448,-572.11055918,0.00017877,2]
[402930486,1768991439457,-1009.27084083,0.00017877,2]
[402930487,1768991439466,-7063.11103354,0.0001789,2]
[402930488,1768991439476,-25542.716,0.000179,2]
[402930489,1768991439485,-1000.0,0.000179,2]
[402930490,1768991439494,-287.46596903,0.000179,2]
[402930491,1768991439503,-9286.38050599,0.000179,2]
[402930492,1768991439512,-748.38189103,0.000179,2]
[402930493,1768991439521,-3159.0769,0.000179,2]
[402930494,1768991439531,-13356.30675954,0.000179,2]
[402930495,1768991439540,-250.00005406,0.000179,2]
[402930496,1768991439549,-4474.6660817,0.000179,2]
[402930497,1768991439558,-324.92591646,0.000179,2]
[402930498,1768991439566,-500.0,0.000179,2]
[402930499,1768991439575,-500.0,0.000179,2]
[402930500,1768991439585,-500.0,0.000179,2]
[402930501,1768991439596,-500.0,0.000179,2]
[402930502,1768991439607,-500.0,0.000179,2]
[402930503,1768991439617,-500.0,0.000179,2]
[402930504,1768991439627,-500.0,0.000179,2]
[402930505,1768991439636,-500.0,0.000179,2]
[402930506,1768991439648,-500.0,0.000179,2]
[402930507,1768991439657,-500.0,0.000179,2]
[402930508,1768991439666,-500.0,0.000179,2]
[402930509,1768991439675,-500.0,0.000179,2]
[402930510,1768991439685,-500.0,0.000179,2]
[402930511,1768991439693,-500.0,0.000179,2]
[402930512,1768991439702,-500.0,0.000179,2]
[402930513,1768991439711,-500.0,0.000179,2]
[402930514,1768991439720,-500.0,0.000179,2]
[402930515,1768991439730,-500.0,0.000179,2]
[402930516,1768991439739,-500.0,0.000179,2]
[402930517,1768991439748,-500.0,0.000179,2]
[402930518,1768991439758,-500.0,0.000179,2]
[402930519,1768991439768,-500.0,0.000179,2]
[402930520,1768991439778,-500.0,0.000179,2]
[402930521,1768991439787,-500.0,0.000179,2]
[402930522,1768991439798,-500.0,0.000179,2]
[402930523,1768991439808,-500.0,0.000179,2]
[402930524,1768991439818,-500.0,0.000179,2]
[402930525,1768991439827,-500.0,0.000179,2]
[402930526,1768991439836,-500.0,0.000179,2]
[402930527,1768991439845,-500.0,0.000179,2]
[402930528,1768991439854,-9380.0,0.000179,2]
[402930529,1768991439863,-287.46596901,0.00017902,2]
[402930530,1768991439872,-287.46596901,0.00017903,2]
[402930531,1768991439881,-18737.20153664,0.00017903,2]
[402930532,1768991439891,-1370.15,0.00017911,2]
[402930533,1768991439900,-639.69507159,0.00017921,2]
[402930534,1768991439909,-1000.0,0.00017921,2]
[402930535,1768991439919,-1000.0,0.00017921,2]
[402930536,1768991439928,-561.91385606,0.00017921,2]
[402930537,1768991439937,-1000.0,0.00017921,2]
[402930538,1768991439947,-1000.0,0.00017921,2]
[402930539,1768991439956,-1000.0,0.00017921,2]
[402930540,1768991439966,-1000.0,0.00017921,2]
[402930541,1768991439975,-242.41470896,0.00017921,2]
[402930542,1768991439985,-1000.0,0.00017921,2]
[402930543,1768991439994,-1000.0,0.00017921,2]
[402930544,1768991440004,-653.64,0.00017921,2]
[402930545,1768991440014,-350.6847459,0.00017954,2]
[402930547,1768991440025,-1000.0,0.0001797,2]
[402930548,1768991440034,-500.0,0.0001797,2]
[402930550,1768991440044,-1321.57411122,0.0001797,2]
[402930551,1768991440054,-500.0,0.0001797,2]
[402930552,1768991440063,-694.631145,0.0001797,2]
[402930553,1768991440072,-1000.0,0.0001797,2]
[402930554,1768991440082,-1000.0,0.0001797,2]
[402930555,1768991440092,-15055.0,0.00017973,2]
[402930556,1768991440103,-30553.0,0.00017973,2]
[402930557,1768991440112,-500.0,0.00017973,2]
[402930558,1768991440121,-150.0,0.00017973,2]
[402930559,1768991440130,-500.0,0.00017982,2]
[402930560,1768991440139,-305.22366862,0.0001799,2]
[402930561,1768991440148,-305.22366862,0.0001799,2]
[402930562,1768991440157,-151.0,0.00017997,2]
[402930563,1768991440166,-500.0,0.00017999,2]
[402930564,1768991440176,-383.87868293,0.00017999,2]
[402930565,1768991440185,-300.0,0.00017999,2]
[402930566,1768991440194,-500.0,0.00017999,2]
[402930567,1768991440203,-500.0,0.00017999,2]
[402930568,1768991440213,-511.10431069,0.00017999,2]
[402930569,1768991440223,-666.0,0.00017999,2]
[402930570,1768991440233,-500.0,0.00017999,2]
[402930571,1768991440242,-500.0,0.00017999,2]
[402930572,1768991440252,-500.0,0.00017999,2]
[402930573,1768991440261,-500.0,0.00017999,2]
[402930574,1768991440271,-500.0,0.00017999,2]
[402930575,1768991440284,-500.0,0.00017999,2]
[402930576,1768991440294,-500.0,0.00017999,2]
[402930577,1768991440303,-500.0,0.00017999,2]
[402930578,1768991440312,-374.17567263,0.00017999,2]